bitfinex/quotes_ETHUSD_20250824
["timestamp","ask_amount","ask_price","bid_price","bid_amount"]
[1756055461463,1e-08,4840.6,4840.5,10.69246828]
[1756055461756,1e-08,4840.6,4840.5,12.87146828]
[1756055467252,1e-08,4840.6,4840.5,12.86946828]
[1756055474477,1e-08,4840.6,4840.5,8.65166828]
[1756055474642,0.30000001,4840.6,4840.5,11.45666828]
[1756055474841,0.30000001,4840.6,4840.5,18.29113296]
[1756055475151,0.30000001,4840.6,4840.5,18.95113296]
[1756055475338,0.4677,4841.1,4841.0,2.0656889]
[1756055475671,0.4942,4841.1,4841.0,9.54383324]
[1756055476042,0.4942,4841.1,4841.0,9.64703324]
[1756055476434,0.4942,4841.1,4841.0,10.14123324]
[1756055477245,0.4942,4841.1,4841.0,4.61054434]
[1756055477445,0.4942,4841.1,4841.0,8.6338889]
[1756055477652,0.4942,4841.1,4841.0,6.5682]
[1756055477958,0.4942,4841.1,4841.0,8.6338889]
[1756055481353,0.0285,4841.1,4841.0,8.5306889]
[1756055481548,0.002,4841.1,4841.0,8.6338889]
[1756055481755,0.002,4841.1,4841.0,10.48017976]
[1756055482156,0.002,4841.1,4841.0,11.44977976]
[1756055482382,0.002,4841.1,4841.0,14.09047976]
[1756055483584,0.002,4841.1,4841.0,7.32477976]
[1756055483773,0.0268,4841.1,4841.0,8.6328889]
[1756055486967,0.0268,4841.1,4841.0,5.1688889]
[1756055487169,0.0268,4841.1,4841.0,8.6328889]
[1756055487766,0.0268,4841.1,4841.0,10.2208889]
[1756055487967,0.0268,4841.1,4841.0,10.6838889]
[1756055488296,0.0268,4841.1,4841.0,12.64229976]
[1756055489692,0.0268,4841.1,4841.0,9.17829976]
[1756055489854,0.0268,4841.1,4841.0,12.64229976]
[1756055490917,0.0268,4841.1,4841.0,7.11261086]
[1756055491063,0.4898,4841.1,4841.0,4.6912]
[1756055491266,0.4898,4841.1,4841.0,10.2208889]
[1756055491459,0.4898,4841.1,4841.0,8.1552]
[1756055491774,0.4898,4841.1,4841.0,1.6912]
[1756055491961,0.4898,4841.1,4841.0,5.1552]
[1756055494259,0.4898,4841.1,4841.0,1.6912]
[1756055494962,0.4898,4841.1,4841.0,5.1552]
[1756055501410,0.0268,4841.1,4841.0,5.052]
[1756055501607,0.0268,4841.1,4841.0,15.23907358]
[1756055501608,0.002,4841.1,4841.0,15.23907358]
[1756055501791,0.002,4841.1,4841.0,18.34227358]
[1756055502122,0.002,4841.1,4841.0,18.42503058]
[1756055502688,0.002,4841.1,4841.0,21.26403058]
[1756055503717,0.002,4841.6,4841.5,2.06547557]
[1756055503894,0.002,4841.6,4841.5,16.60454215]
[1756055504086,0.002,4841.6,4841.5,17.16944215]
[1756055504921,0.002,4841.6,4841.5,17.25218615]
[1756055505220,0.002,4841.6,4841.5,19.98798615]
[1756055505419,0.002,4841.6,4841.5,20.09118615]
[1756055505840,0.002,4841.7,4841.6,7.90443291]
[1756055506150,0.002,4841.7,4841.6,10.81761091]
[1756055506636,0.002,4841.7,4841.6,7.97861091]
[1756055506837,0.002,4841.7,4841.6,9.30073291]
[1756055510036,0.002,4841.7,4841.6,8.83903291]
[1756055510639,0.002,4841.7,4841.6,9.30073291]
[1756055511422,0.002,4841.7,4841.6,8.83903291]
[1756055512133,0.002,4841.7,4841.6,9.27703291]
[1756055512324,0.002,4841.7,4841.6,11.20642482]
[1756055514330,0.002,4841.7,4841.6,11.28916582]
[1756055518748,0.2825,4841.7,4841.6,7.07756582]
[1756055518968,0.002,4841.7,4841.6,8.61117391]
[1756055519524,0.002,4841.7,4841.6,8.91337391]
[1756055520153,0.002,4841.7,4841.6,8.61117391]
[1756055520817,0.2842,4841.7,4841.6,8.61117391]
[1756055521521,0.7345,4841.7,4841.6,8.61117391]
[1756055522421,0.002,4841.7,4841.6,9.68916236]
[1756055522619,0.002,4841.7,4841.6,9.99136236]
[1756055522842,0.002,4841.7,4841.6,10.42936236]
[1756055523251,0.002,4841.7,4841.6,9.68916236]
[1756055523544,0.002,4841.7,4841.6,9.99136236]
[1756055523750,0.002,4841.7,4841.6,10.42936236]
[1756055524147,0.002,4841.7,4841.6,11.19256236]
[1756055525127,1e-08,4841.7,4841.6,11.19256236]
[1756055526226,1e-08,4841.7,4841.6,18.02702704]
[1756055529032,1e-08,4841.7,4841.6,14.12602704]
[1756055529233,1e-08,4841.7,4841.6,17.58902704]
[1756055529637,1e-08,4841.7,4841.6,18.02702704]
[1756055531934,0.73270001,4841.7,4841.6,3.32936236]
[1756055532129,0.73270001,4841.7,4841.6,5.71337391]
[1756055532362,0.73270001,4841.7,4841.6,0.185941]
[1756055532541,0.73270001,4841.7,4841.6,3.647941]
[1756055532743,0.73270001,4841.7,4841.6,8.71337391]
[1756055532939,0.73270001,4841.7,4841.6,8.71437391]
[1756055533343,0.73270001,4841.7,4841.6,6.648941]
[1756055533549,0.73270001,4841.7,4841.6,8.71437391]
[1756055533753,0.73270001,4841.7,4841.6,6.648941]
[1756055533948,0.73270001,4841.7,4841.6,3.5662]
[1756055535380,0.73270001,4841.7,4841.6,5.63163291]
[1756055535969,0.73270001,4841.7,4841.6,3.5662]
[1756055540175,1e-08,4841.7,4841.6,5.98825291]
[1756055540780,1e-08,4841.7,4841.6,6.29045291]
[1756055541154,1e-08,4841.7,4841.6,9.72845291]
[1756055542848,1e-08,4841.7,4841.6,4.20102]
[1756055543115,0.29470001,4841.7,4841.6,6.5672]
[1756055544801,0.29470001,4841.7,4841.6,8.63263291]
[1756055545020,1e-08,4841.7,4841.6,16.22049759]
[1756055545324,1e-08,4841.7,4841.6,8.63263291]
[1756055545715,1e-08,4841.7,4841.6,6.5672]
[1756055545716,0.29450001,4841.7,4841.6,6.5672]
[1756055546110,0.29450001,4841.7,4841.6,3.5672]
[1756055547800,0.73240001,4841.7,4841.6,3.5672]
[1756055548436,0.29450001,4841.7,4841.6,3.5672]
[1756055548735,0.29450001,4841.7,4841.6,4.19253574]
[1756055549044,0.73240001,4841.7,4841.6,3.5672]
[1756055550867,0.29450001,4841.7,4841.6,3.5672]
[1756055552362,1e-08,4841.7,4841.6,3.8702]
[1756055552562,1e-08,4841.7,4841.6,5.93563291]
[1756055552768,1e-08,4841.7,4841.6,9.46878491]
[1756055552972,1e-08,4841.7,4841.6,11.3056571]
[1756055556923,1e-08,4841.7,4841.6,10.8552571]
[1756055557160,0.00460001,4841.7,4841.6,0.186952]
[1756055557345,0.00460001,4841.7,4841.6,3.648952]
[1756055557526,0.43960001,4841.7,4841.6,3.5662]
[1756055559529,0.00460001,4841.7,4841.6,3.5662]
[1756055560373,0.00460001,4841.7,4841.6,0.1042]
[1756055560595,0.44400001,4841.7,4841.6,3.5662]
[1756055561333,0.00460001,4841.7,4841.6,3.5662]
[1756055567187,0.44400001,4841.7,4841.6,3.5662]
[1756055567486,0.44400001,4841.7,4841.6,3.5672]
[1756055567663,0.00460001,4841.7,4841.6,3.5672]
[1756055568065,1e-08,4841.7,4841.6,4.3206]
[1756055568259,1e-08,4841.7,4841.6,4.7609367]
[1756055568900,1e-08,4841.7,4841.6,6.45873061]
[1756055569071,1e-08,4841.7,4841.6,6.90913061]
[1756055569385,1e-08,4841.7,4841.6,6.90813061]
[1756055571689,1e-08,4841.7,4841.6,6.86173349]
[1756055572186,1e-08,4841.7,4841.6,6.41133349]
[1756055573113,1e-08,4841.7,4841.6,4.80730058]
[1756055573672,1e-08,4841.7,4841.6,6.87273349]
[1756055574089,1e-08,4841.7,4841.6,4.34590058]
[1756055575695,1e-08,4841.7,4841.6,0.58090058]
[1756055575890,1e-08,4841.7,4841.6,3.60256388]
[1756055576298,1e-08,4841.7,4841.6,7.55339679]
[1756055577296,1e-08,4841.7,4841.6,5.48796388]
[1756055578102,1e-08,4841.7,4841.6,5.40520288]
[1756055578874,1e-08,4841.7,4841.6,5.10780288]
[1756055579986,1e-08,4841.7,4841.6,1.64580288]
[1756055580302,1e-08,4841.7,4841.6,5.10780288]
[1756055580701,1e-08,4841.7,4841.6,5.40520288]
[1756055580907,1e-08,4841.7,4841.6,5.10780288]
[1756055581067,0.29640001,4841.7,4841.6,5.10780288]
[1756055581273,1e-08,4841.7,4841.6,5.10780288]
[1756055581470,1e-08,4841.7,4841.6,5.40520288]
[1756055582000,1e-08,4841.7,4841.6,7.93303579]
[1756055582214,1e-08,4841.7,4841.6,8.93288911]
[1756055583378,0.29640001,4841.7,4841.6,5.10880288]
[1756055586085,0.76060001,4841.7,4841.6,5.10880288]
[1756055586487,0.29640001,4841.7,4841.6,5.10880288]
[1756055587678,0.76060001,4841.7,4841.6,1.64680288]
[1756055587879,0.76060001,4841.7,4841.6,5.10880288]
[1756055594099,0.002,4842.2,4841.6,5.40620288]
[1756055594297,0.620776,4842.9,4841.6,5.40620288]
[1756055594298,4.84605039,4848.1,4844.1,3.422]
[1756055594516,4.84605039,4848.1,4842.8,9.31393769]
[1756055594517,0.1,4850.4,4848.1,2.179]
[1756055594838,4.84556449,4851.4,4850.9,2.06147312]
[1756055594839,0.0155132,4851.4,4850.9,2.06147312]
[1756055594997,0.0155132,4851.4,4850.6,6.83446468]
[1756055595197,0.0155132,4851.4,4850.2,0.5]
[1756055595198,1.608,4855.8,4851.7,0.5]
[1756055595400,30.0,4855.7,4854.8,0.54435293]
[1756055595721,30.0,4855.7,4855.6,0.1032]
[1756055595885,35.9594,4855.7,4855.6,0.1032]
[1756055596087,31.8844,4855.7,4854.9,0.18913738]
[1756055596433,1.242,4855.5,4855.4,0.73412378]
[1756055596741,29.9,4855.4,4854.9,0.18913738]
[1756055596884,0.2964,4855.0,4854.9,0.18913738]
[1756055597084,0.7606,4855.0,4854.9,0.18913738]
[1756055597632,3.733,4855.3,4854.9,0.18913738]
[1756055597633,0.3733,4855.3,4854.9,0.18913738]
[1756055597799,0.2964,4855.0,4854.2,0.54109665]
[1756055597986,30.0,4854.2,4853.0,0.54109665]
[1756055598182,0.2964,4853.1,4852.0,0.54109665]
[1756055598446,11.81742966,4852.8,4851.4,0.54109665]
[1756055598587,0.30679566,4852.7,4850.7,0.54109665]
[1756055598788,11.81742966,4851.6,4849.9,0.10732122]
[1756055599105,36.201,4851.5,4849.5,0.54109665]
[1756055599302,30.0,4851.4,4849.7,0.619409]
[1756055599517,11.81742966,4850.8,4849.3,0.54109665]
[1756055599745,4.613,4851.3,4849.4,0.54109665]
[1756055599746,30.0,4850.7,4849.4,0.54109665]
[1756055600048,0.3225566,4851.4,4850.5,0.54109665]
[1756055600206,0.3225566,4851.4,4851.2,0.53878294]
[1756055600552,1.586,4851.3,4851.0,0.53878294]
[1756055600855,0.4642,4852.7,4851.2,0.53878294]
[1756055601000,1.586,4852.6,4851.8,0.53773022]
[1756055601357,1.586,4852.6,4852.2,0.53773022]
[1756055601665,1.586,4852.6,4852.2,0.99913022]
[1756055601816,1.586,4852.6,4852.2,0.53773022]
[1756055602219,0.4644,4852.5,4851.4,1.03773022]
[1756055602532,4.596,4852.4,4851.4,0.53773022]
[1756055602734,0.4644,4852.5,4851.4,0.53773022]
[1756055603343,34.588,4852.4,4851.1,0.53773022]
[1756055603639,30.0,4852.3,4850.9,1.03773022]
[1756055603940,30.4644,4852.3,4851.0,0.53773022]
[1756055604140,0.4644,4852.3,4850.9,1.03773022]
[1756055604341,30.0,4852.2,4850.9,1.03773022]
[1756055604644,30.0,4852.2,4850.8,0.02]
[1756055604645,0.4644,4852.1,4850.8,0.02]
[1756055604861,30.0,4852.0,4850.8,0.02]
[1756055605067,3.4644,4851.9,4850.8,0.02]
[1756055605369,3.64677688,4852.6,4851.1,0.5]
[1756055605370,3.0,4852.1,4851.1,0.5]
[1756055605510,0.2893,4851.2,4850.8,0.02]
[1756055605710,3.0,4851.0,4850.8,0.02]
[1756055605948,34.585,4850.9,4850.8,0.02]
[1756055606129,3.0,4850.8,4849.8,0.02]
[1756055606332,0.1032,4850.1,4849.8,0.02]
[1756055606551,4.574,4850.0,4849.8,0.02]
[1756055606758,30.0,4849.9,4849.8,0.02]
[1756055606965,0.55773,4850.9,4850.8,0.5]
[1756055607453,0.02,4853.8,4852.2,0.5]
[1756055607645,1.585,4853.3,4852.2,0.5]
[1756055608123,1.585,4853.3,4852.8,0.53516197]
[1756055608312,1.585,4853.3,4852.9,0.42809836]
[1756055608512,1.585,4853.3,4853.0,0.42809836]
[1756055608748,1.585,4853.3,4853.1,0.42809836]
[1756055609060,0.02,4853.8,4853.2,0.42809836]
[1756055609265,0.02,4853.8,4852.8,0.5]
[1756055609266,0.02,4853.8,4853.3,0.42763854]
[1756055609473,0.02,4853.8,4853.4,0.42763854]
[1756055609678,0.02,4853.8,4853.5,0.42763854]
[1756055609851,0.02,4853.8,4853.6,0.42763854]
[1756055610053,0.02,4853.8,4853.1,0.5]
[1756055610232,0.02,4853.8,4853.2,0.42734156]
[1756055610439,0.02,4853.8,4853.3,0.42734156]
[1756055610705,0.02,4853.8,4853.7,0.8077]
[1756055610978,0.02,4853.8,4853.7,1.23504156]
[1756055611288,0.002,4855.9,4855.7,0.5]
[1756055611438,0.002,4855.9,4855.7,0.92734156]
[1756055611638,0.002,4855.9,4855.7,1.36394156]
[1756055612662,0.002,4855.9,4855.7,1.45924396]
[1756055612984,0.002,4855.9,4855.7,1.36394156]
[1756055613210,0.002,4855.9,4855.7,1.89584396]
[1756055613390,0.002,4855.9,4855.7,1.36394156]
[1756055614254,0.002,4855.9,4855.7,2.02394156]
[1756055614457,0.04,4857.8,4856.7,1.16]
[1756055614764,0.04,4857.8,4857.7,0.5]
[1756055614959,0.04,4857.8,4855.8,1.8666]
[1756055614960,0.04,4857.8,4857.1,0.5]
[1756055615289,0.04,4857.8,4856.9,0.5]
[1756055615491,31.584,4857.7,4856.3,0.5]
[1756055615660,0.4644,4857.6,4856.3,0.5]
[1756055615861,0.4644,4857.6,4855.0,0.53101533]
[1756055615862,3.0,4857.4,4855.0,0.53101533]
[1756055616089,3.0,4857.2,4855.1,0.42522447]
[1756055616301,3.0,4857.2,4853.6,6.37384523]
[1756055616302,0.04,4857.8,4857.7,0.5]
[1756055616591,0.02,4858.8,4858.7,1.16]
[1756055616913,0.05952085,4860.0,4859.7,0.5]
[1756055617112,0.11351,4860.6,4860.4,2.71744383]
[1756055617409,0.04,4862.8,4860.7,1.16]
[1756055617595,1e-08,4861.8,4861.7,3.21689367]
[1756055617931,1e-08,4861.8,4861.7,27.46601003]
[1756055618088,0.04,4862.8,4862.7,3.21647068]
[1756055618268,0.04,4862.8,4862.7,18.04515708]
[1756055618474,1e-08,4864.8,4864.7,0.5]
[1756055618678,1e-08,4865.8,4865.7,0.66]
[1756055618915,0.04,4867.8,4865.7,0.66]
[1756055618916,0.04,4867.8,4867.7,0.5]
[1756055619117,0.04,4867.8,4866.4,0.5]
[1756055619275,0.04,4867.8,4867.0,0.66]
[1756055619276,0.5044,4867.8,4867.0,0.66]
[1756055619605,0.04,4867.8,4867.1,0.5]
[1756055619905,0.04,4867.8,4867.7,0.5]
[1756055620308,30.0,4867.7,4866.5,0.5]
[1756055620480,30.0,4867.7,4865.8,0.082324]
[1756055620481,0.4644,4867.6,4865.8,0.082324]
[1756055620683,3.0,4867.4,4865.6,0.5]
[1756055621009,0.04,4867.8,4867.1,0.5]
[1756055621212,0.5044,4867.8,4867.1,0.5]
[1756055621375,0.5044,4867.8,4866.1,0.5]
[1756055621570,0.5044,4867.8,4866.4,0.5]
[1756055621797,3.0,4867.6,4866.4,0.5]
[1756055621998,3.0,4867.4,4866.4,0.5]
[1756055622315,3.0,4866.3,4865.4,0.5]
[1756055622507,1.583,4866.2,4865.4,0.5]
[1756055622674,4.583,4866.2,4865.4,0.5]
[1756055623100,7.4644,4866.3,4863.8,0.61762]
[1756055623101,7.0,4866.3,4866.2,0.5]
[1756055623512,7.4644,4866.3,4865.7,0.5]
[1756055623809,7.4644,4866.3,4864.3,1.583]
[1756055623810,7.4644,4866.3,4865.8,0.5]
[1756055624212,1.582,4866.5,4865.8,0.5]
[1756055624432,5.336,4867.8,4858.8,22.05809891]
[1756055624433,3.0,4866.3,4865.0,0.5]
[1756055624629,3.0,4866.1,4864.5,0.5]
[1756055624834,0.66,4865.3,4863.5,0.5]
[1756055625042,3.66,4865.1,4863.2,0.5]
[1756055625192,3.66,4865.1,4861.2,1.582]
[1756055625193,0.02,4863.8,4863.7,0.5]
[1756055625593,0.02,4863.8,4863.7,1.3426984]
[1756055625892,0.02,4863.8,4863.7,0.6826984]
[1756055626293,0.02,4863.8,4863.7,4.3426984]
[1756055626611,0.02,4864.8,4864.7,1.16]
[1756055626811,0.02,4864.8,4864.7,5.9246984]
[1756055627011,0.02,4864.8,4864.7,1.7646984]
[1756055627201,0.02,4864.8,4864.7,2.2646984]
[1756055627829,0.02,4864.8,4864.7,5.9246984]
[1756055628002,0.02,4864.8,4864.7,6.62643457]
[1756055628231,0.002,4867.2,4867.1,0.5]
[1756055628596,0.002,4867.2,4867.1,0.68180669]
[1756055628793,0.002,4867.2,4867.1,0.78420669]
[1756055629215,0.002,4867.2,4867.1,0.6024]
[1756055630030,0.002,4867.2,4867.1,0.78408238]
[1756055630233,0.002,4867.2,4867.1,0.6024]
[1756055630743,0.002,4867.2,4867.1,0.1024]
[1756055630744,0.4664,4867.2,4867.1,0.1024]
[1756055630905,0.4664,4867.2,4866.8,0.1024]
[1756055631228,1.581,4867.1,4866.4,0.1024]
[1756055631427,0.1024,4866.7,4865.8,0.5]
[1756055631724,0.4644,4866.6,4866.1,0.1024]
[1756055631925,0.4485,4866.5,4865.8,0.5]
[1756055632137,0.4485,4866.5,4865.3,0.5]
[1756055632300,3.0,4866.2,4864.6,0.5]
[1756055632501,3.0,4866.2,4864.3,0.617624]
[1756055632502,0.66,4865.9,4864.3,0.617624]
[1756055632704,2.05550566,4865.0,4863.7,0.5]
[1756055632904,3.0,4864.8,4863.4,0.5]
[1756055633105,3.0,4864.8,4864.0,0.5]
[1756055633106,0.02,4864.8,4864.0,0.5]
[1756055633338,0.4485,4864.7,4864.0,0.5]
[1756055633546,0.65345,4864.7,4864.0,0.5]
[1756055633746,0.4485,4864.6,4863.7,0.5]
[1756055633911,0.4485,4864.6,4861.7,1.581]
[1756055634247,0.4485,4864.6,4863.5,0.5]
[1756055634705,0.4485,4864.6,4863.8,0.5]
[1756055634911,0.4485,4864.6,4863.5,0.5]
[1756055635141,3.0,4864.4,4863.1,0.5]
[1756055635319,3.0,4864.2,4863.1,0.5]
[1756055635649,0.66,4863.9,4862.5,0.5]
[1756055635806,3.0,4863.7,4862.6,0.18328504]
[1756055636011,0.4485,4863.6,4862.7,0.18331268]
[1756055636207,0.4485,4863.6,4862.5,0.5]
[1756055636435,0.4485,4863.6,4862.6,0.18390099]
[1756055636740,3.0,4863.3,4862.2,0.5]
[1756055636941,0.4485,4863.2,4862.3,0.18388682]
[1756055637146,0.4485,4863.2,4862.4,0.18388682]
[1756055637346,0.4485,4863.2,4862.6,0.5]
[1756055637517,0.4485,4863.2,4862.7,0.18388682]
[1756055637719,0.4485,4863.1,4862.8,0.18388682]
[1756055637922,0.4485,4863.1,4862.9,0.18388682]
[1756055638123,3.0,4863.6,4863.0,0.18388682]
[1756055638312,3.0,4863.6,4861.1,2.10554981]
[1756055638313,3.0,4863.6,4863.1,0.18388682]
[1756055638512,1.581,4863.8,4862.9,0.5]
[1756055638513,1.581,4863.8,4863.2,0.18388682]
[1756055638742,0.4485,4863.7,4863.3,0.18388682]
[1756055638944,0.4485,4863.6,4863.4,0.18388682]
[1756055639111,0.4485,4863.6,4862.5,0.5]
[1756055639312,0.4485,4863.6,4862.6,0.18466416]
[1756055639512,3.0,4863.3,4862.7,0.18466416]
[1756055639758,3.0,4863.3,4861.8,0.52454981]
[1756055639759,0.4485,4863.2,4862.8,0.18466416]
[1756055639967,3.0,4863.1,4862.9,0.18466416]
[1756055640253,3.0,4863.3,4863.0,0.18466416]
[1756055640463,16.20639772,4863.4,4863.1,0.18466416]
[1756055640464,33.0,4863.2,4863.1,0.18466416]
[1756055640673,33.0,4863.2,4860.5,1.05094751]
[1756055640674,0.4485,4864.0,4863.0,0.5]
[1756055640961,0.4485,4864.0,4863.7,0.5]
[1756055640962,0.32173251,4863.8,4863.7,0.5]
[1756055641125,5.145,4864.6,4863.7,0.61129411]
[1756055641330,0.4485,4863.8,4863.4,0.5]
[1756055641526,2.0295,4863.7,4863.5,0.11137569]
[1756055641729,0.4485,4863.7,4863.6,0.11137569]
[1756055642132,0.4485,4863.7,4862.2,0.52454981]
[1756055642332,0.1032,4863.5,4862.3,0.61146338]
[1756055642646,3.66,4863.3,4862.4,0.11146338]
[1756055642839,0.1032,4862.5,4861.7,0.001]
[1756055643014,0.1032,4862.2,4861.8,0.11169909]
[1756055643216,0.4485,4862.1,4861.9,0.11169909]
[1756055643415,0.1032,4862.2,4862.0,0.11169909]
[1756055643716,0.10451396,4864.4,4861.7,0.001]
[1756055643717,1.581,4863.2,4862.9,0.5]
[1756055643947,1.581,4863.2,4863.0,0.11169909]
[1756055644248,1.581,4863.2,4862.6,0.5]
[1756055644468,3.2964282,4867.6,4867.0,2.05465379]
[1756055644764,2.05555675,4864.9,4863.0,0.5]
[1756055644964,0.1024,4863.9,4863.2,0.1032]
[1756055645114,6.689,4864.1,4863.3,0.11199976]
[1756055645313,7.10730566,4864.0,4863.4,0.11199976]
[1756055645622,6.687,4864.0,4863.5,0.11199976]
[1756055645822,6.687,4864.0,4863.6,0.11199976]
[1756055646019,5.5445,4863.9,4863.7,0.11199976]
[1756055646349,6.2045,4863.9,4863.8,0.11199976]
[1756055646554,41.3835,4863.9,4863.8,0.11199976]
[1756055646730,0.66,4863.7,4862.5,0.5]
[1756055646924,0.4485,4863.6,4862.8,0.02]
[1756055647318,0.4485,4863.6,4863.1,0.1032]
[1756055647717,0.4485,4863.5,4863.1,0.1032]
[1756055647965,0.1032,4863.2,4862.8,0.02]
[1756055648294,0.4485,4863.4,4862.8,0.52]
[1756055648550,0.1032,4862.9,4862.8,0.02]
[1756055649074,0.5517,4862.9,4862.8,0.02]
[1756055649823,0.5517,4862.9,4862.8,0.52]
[1756055650023,0.02,4863.8,4863.3,0.5]
[1756055650249,0.02,4863.8,4863.7,0.5]
[1756055650439,0.02,4863.8,4863.7,1.30259975]
[1756055650640,0.02,4863.8,4863.7,0.6032]
[1756055651122,2.48482434,4863.7,4863.5,1.05094751]
[1756055651431,2.48482434,4863.7,4863.6,0.20829475]
[1756055651629,2.48482434,4863.7,4863.6,1.1850272]
[1756055651829,2.48482434,4863.7,4863.6,0.72135014]
[1756055652057,2.48482434,4863.7,4863.6,0.1032]
[1756055652421,2.48482434,4863.7,4863.6,0.82455014]
[1756055652751,2.48482434,4863.7,4863.6,1.1850272]
[1756055652951,2.48482434,4863.7,4863.6,0.22170272]
[1756055653164,2.48482434,4863.7,4863.6,0.1032]
[1756055653331,2.48482434,4863.7,4863.4,0.72152148]
[1756055653539,2.48482434,4863.7,4863.3,0.72152148]
[1756055653540,2.93332434,4863.7,4863.3,0.72152148]
[1756055653719,3.4485,4863.6,4863.0,0.72152148]
[1756055653920,3.4485,4863.6,4862.9,1.581]
[1756055654128,2.48482434,4863.7,4862.9,1.581]
[1756055654373,2.48482434,4863.7,4863.0,0.72152148]
[1756055654541,2.48482434,4863.7,4863.1,0.72152148]
[1756055654740,2.48482434,4863.7,4863.2,0.72152148]
[1756055654940,2.48482434,4863.7,4863.3,0.72152148]
[1756055655138,2.93332434,4863.7,4863.2,0.72152148]
[1756055655461,2.48482434,4863.7,4863.2,0.72152148]
[1756055655675,2.48482434,4863.7,4863.3,0.72152148]
[1756055655926,2.48482434,4863.7,4863.2,0.72152148]
[1756055656906,0.4485,4863.6,4863.2,0.72152148]
[1756055657212,2.48482434,4863.7,4863.4,1.08213441]
[1756055657610,2.48482434,4863.7,4863.6,0.72224339]
[1756055657767,2.48482434,4863.7,4863.3,1.08213441]
[1756055657964,2.48482434,4863.7,4863.4,1.08213441]
[1756055658473,0.06359045,4866.3,4864.0,0.66]
[1756055658720,0.06359045,4866.3,4865.7,2.05520274]
[1756055658998,1.75234316,4868.6,4865.7,3.3862303]
[1756055659294,0.4485,4866.7,4865.6,1.44370739]
[1756055659491,0.4485,4866.7,4865.5,1.581]
[1756055659792,0.4485,4867.5,4865.5,1.581]
[1756055660292,0.4485,4868.2,4865.7,2.4652303]
[1756055660492,0.4485,4868.2,4865.7,1.63012303]
[1756055660692,0.0183285,4868.6,4865.7,6.62312303]
[1756055660894,0.0183285,4868.6,4865.7,9.62612303]
[1756055661281,0.0183285,4868.6,4865.7,11.80512303]
[1756055661682,0.0183285,4868.6,4865.7,9.62612303]
[1756055662110,0.4471,4868.2,4865.7,9.61312303]
[1756055662312,0.4471,4868.2,4865.7,11.00732577]
[1756055662626,0.4471,4868.2,4865.7,8.95212303]
[1756055662826,0.4501,4867.6,4865.7,1.80280617]
[1756055662992,0.4501,4867.6,4865.7,4.976]
[1756055663189,0.003,4867.6,4865.7,16.02739772]
[1756055663392,0.003,4867.6,4865.7,18.84500046]
[1756055663631,0.003,4867.6,4865.7,2.56520617]
[1756055663923,0.003,4867.6,4866.0,0.66]
[1756055664137,0.003,4867.6,4866.6,2.05481672]
[1756055664346,0.003,4867.6,4866.7,1.581]
[1756055664524,0.003,4867.6,4866.7,6.55]
[1756055664722,0.4471,4871.0,4867.0,2.179]
[1756055665032,0.4471,4869.7,4868.7,1.07862081]
[1756055665251,0.02,4871.8,4869.0,1.07862081]
[1756055665409,0.4471,4871.0,4869.1,1.581]
[1756055665746,0.4471,4871.0,4869.5,1.07862081]
[1756055666032,0.02,4871.8,4869.7,2.09816108]
[1756055666241,0.02,4871.8,4869.8,0.66]
[1756055666442,0.0043035,4870.8,4870.7,3.66]
[1756055666637,0.02,4871.8,4870.8,0.66]
[1756055666638,0.00914342,4871.4,4870.8,0.66]
[1756055666856,0.02,4871.8,4871.7,2.05267155]
[1756055667012,0.02051,4873.5,4872.7,0.66]
[1756055667197,0.02051,4873.5,4872.7,16.83056975]
[1756055667526,0.02051,4873.5,4872.7,12.152]
[1756055667691,0.02051,4873.5,4872.7,7.179]
[1756055667896,0.02051,4873.5,4872.7,10.179]
[1756055668098,0.02051,4873.5,4872.7,15.149]
[1756055668290,0.02051,4873.5,4872.7,9.519]
[1756055668527,0.02051,4873.5,4872.7,12.15]
[1756055668733,0.02051,4873.5,4872.7,1.58]
[1756055668948,0.02051,4873.5,4872.7,6.548]
[1756055669502,0.02051,4873.5,4872.7,10.8628]
[1756055669730,0.02051,4873.5,4872.7,5.8948]
[1756055669902,0.02051,4873.5,4872.7,7.201]
[1756055670105,0.02051,4873.5,4872.7,7.197]
[1756055670429,0.02051,4873.5,4872.7,1.58]
[1756055670639,0.02051,4873.5,4872.7,6.535]
[1756055670945,0.02051,4873.5,4872.7,1.58]
[1756055671152,0.4871,4872.8,4872.7,6.53]
[1756055671440,0.4871,4872.8,4871.8,1.579]
[1756055671655,0.4871,4872.8,4871.9,4.947]
[1756055672151,0.4871,4872.8,4872.0,4.945]
[1756055672936,0.4871,4872.8,4872.1,4.931]
[1756055673807,0.4871,4872.8,4872.7,0.1024]
[1756055674007,0.4871,4872.8,4872.7,1.6814]
[1756055674008,0.04,4872.8,4872.7,1.6814]
[1756055674207,0.04,4872.8,4872.7,2.23934]
[1756055674420,0.04,4872.8,4872.7,1.579]
[1756055674631,0.04,4872.8,4872.7,6.513]
[1756055674944,0.04,4872.8,4872.7,1.579]
[1756055675144,0.4871,4872.8,4872.3,4.929]
[1756055675345,0.04,4872.8,4872.4,6.508]
[1756055675511,0.04,4872.8,4872.5,4.929]
[1756055675906,0.04,4872.8,4872.4,1.579]
[1756055676209,0.04,4872.8,4872.4,6.499]
[1756055676210,0.4471,4872.7,4872.4,6.499]
[1756055678056,0.04,4872.8,4872.4,6.499]
[1756055678392,0.04,4872.8,4872.4,7.1489]